[Event "Titled Tuesday Blitz April 11 Early 2023"]
[White "Timofeev, Artyom"]
[Black "Narayanan, Srinath"]
[WhiteFideId "4140419"]
[BlackFideId "5018420"]
[WhiteElo "2586"]
[BlackElo "2438"]
[Result "1-0"]
[Round "11"]
[TimeControl "180+2"]
[Date "2023.04.11"]
[WhiteClock "0:00:13"]
[BlackClock "0:00:12"]

1. c4 {[%clk 0:03:00]}  e5 {[%clk 0:02:59]} 2. d3 {[%clk 0:03:00]}  Nf6 {[%clk 0:02:58]} 3. Nf3 {[%clk 0:02:59]}  Nc6 {[%clk 0:02:58]} 4. Nc3 {[%clk 0:02:59]}  d5 {[%clk 0:02:58]} 5. cxd5 {[%clk 0:02:59]}  Nxd5 {[%clk 0:02:59]} 6. e3 {[%clk 0:02:59]}  Nxc3 {[%clk 0:02:57]} 7. bxc3 {[%clk 0:02:59]}  Bd6 {[%clk 0:02:58]} 8. Be2 {[%clk 0:02:57]}  O-O {[%clk 0:02:58]} 9. O-O {[%clk 0:02:57]}  Re8 {[%clk 0:02:59]} 10. d4 {[%clk 0:02:54]}  Bd7 {[%clk 0:02:57]} 11. Rb1 {[%clk 0:02:49]}  b6 {[%clk 0:02:57]} 12. a4 {[%clk 0:02:44]}  Qf6 {[%clk 0:02:56]} 13. Ra1 {[%clk 0:02:33]}  Rad8 {[%clk 0:02:48]} 14. Ba3 {[%clk 0:02:32]}  Bf5 {[%clk 0:02:09]} 15. Bb5 {[%clk 0:02:25]}  Bxa3 {[%clk 0:01:47]} 16. Rxa3 {[%clk 0:02:25]}  exd4 {[%clk 0:01:45]} 17. cxd4 {[%clk 0:02:22]}  Be4 {[%clk 0:01:46]} 18. Rc3 {[%clk 0:02:13]}  Qg6 {[%clk 0:01:41]} 19. g3 {[%clk 0:01:49]}  Re6 {[%clk 0:01:29]} 20. Nd2 {[%clk 0:01:48]}  Bd5 {[%clk 0:01:25]} 21. Bc4 {[%clk 0:01:48]}  Nb4 {[%clk 0:01:22]} 22. Qb3 {[%clk 0:01:38]}  a5 {[%clk 0:01:15]} 23. Bxd5 {[%clk 0:01:32]}  Nxd5 {[%clk 0:01:16]} 24. Rcc1 {[%clk 0:01:29]}  Re7 {[%clk 0:01:05]} 25. Rfd1 {[%clk 0:01:16]}  h5 {[%clk 0:01:04]} 26. Qc2 {[%clk 0:01:07]}  Qxc2 {[%clk 0:00:54]} 27. Rxc2 {[%clk 0:00:29]}  c5 {[%clk 0:00:55]} 28. Nf3 {[%clk 0:00:27]}  Nb4 {[%clk 0:00:53]} 29. Rcc1 {[%clk 0:00:27]}  Red7 {[%clk 0:00:47]} 30. Rf1 {[%clk 0:00:26]}  cxd4 {[%clk 0:00:35]} 31. Nxd4 {[%clk 0:00:25]}  h4 {[%clk 0:00:35]} 32. Kg2 {[%clk 0:00:25]}  hxg3 {[%clk 0:00:34]} 33. hxg3 {[%clk 0:00:25]}  g6 {[%clk 0:00:33]} 34. Rc4 {[%clk 0:00:25]}  Kg7 {[%clk 0:00:33]} 35. Rfc1 {[%clk 0:00:24]}  Nd3 {[%clk 0:00:32]} 36. R1c3 {[%clk 0:00:23]}  Nc5 {[%clk 0:00:32]} 37. Rc2 {[%clk 0:00:21]}  Rd5 {[%clk 0:00:31]} 38. R2c3 {[%clk 0:00:21]}  Rh8 {[%clk 0:00:26]} 39. Nb3 {[%clk 0:00:20]}  Nxb3 {[%clk 0:00:17]} 40. Rxb3 {[%clk 0:00:20]}  Rd6 {[%clk 0:00:18]} 41. Rc7 {[%clk 0:00:19]}  Re8 {[%clk 0:00:18]} 42. Rb7 {[%clk 0:00:18]}  Ree6 {[%clk 0:00:19]} 43. g4 {[%clk 0:00:18]}  g5 {[%clk 0:00:19]} 44. Kf3 {[%clk 0:00:18]}  Rf6+ {[%clk 0:00:19]} 45. Kg3 {[%clk 0:00:18]}  Rde6 {[%clk 0:00:17]} 46. Rb5 {[%clk 0:00:18]}  Kg6 {[%clk 0:00:16]} 47. Rb8 {[%clk 0:00:18]}  Kh6 {[%clk 0:00:13]} 48. Rh8+ {[%clk 0:00:17]}  Kg7 {[%clk 0:00:14]} 49. Rh5 {[%clk 0:00:17]}  Re4 {[%clk 0:00:14]} 50. Rhxg5+ {[%clk 0:00:17]}  Kf8 {[%clk 0:00:15]} 51. Rh5 {[%clk 0:00:16]}  Kg7 {[%clk 0:00:10]} 52. Rhf5 {[%clk 0:00:15]}  Rg6 {[%clk 0:00:09]} 53. Rf4 {[%clk 0:00:15]}  Rxf4 {[%clk 0:00:08]} 54. Kxf4 {[%clk 0:00:15]}  Rc6 {[%clk 0:00:09]} 55. Kg3 {[%clk 0:00:15]}  Kg6 {[%clk 0:00:09]} 56. f4 {[%clk 0:00:15]}  f6 {[%clk 0:00:09]} 57. Kf3 {[%clk 0:00:15]}  Kf7 {[%clk 0:00:10]} 58. g5 {[%clk 0:00:14]}  fxg5 {[%clk 0:00:10]} 59. Rxg5 {[%clk 0:00:14]}  Rc4 {[%clk 0:00:10]} 60. Rb5 {[%clk 0:00:14]}  Rxa4 {[%clk 0:00:10]} 61. Rxb6 {[%clk 0:00:14]}  Rc4 {[%clk 0:00:11]} 62. Ra6 {[%clk 0:00:14]}  a4 {[%clk 0:00:12]} 63. e4 {[%clk 0:00:14]}  Rc3+ {[%clk 0:00:12]} 64. Kg4 {[%clk 0:00:14]}  a3 {[%clk 0:00:13]} 65. e5 {[%clk 0:00:14]}  Ke7 {[%clk 0:00:13]} 66. Kf5 {[%clk 0:00:15]}  Rd3 {[%clk 0:00:12]} 67. Ra7+ {[%clk 0:00:15]}  Ke8 {[%clk 0:00:13]} 68. Ke6 {[%clk 0:00:15]}  Kf8 {[%clk 0:00:13]} 69. f5 {[%clk 0:00:14]}  Re3 {[%clk 0:00:13]} 70. Kf6 {[%clk 0:00:15]}  Kg8 {[%clk 0:00:11]} 71. e6 {[%clk 0:00:14]}  Re2 {[%clk 0:00:11]} 72. Ra8+ {[%clk 0:00:14]}  Kh7 {[%clk 0:00:11]} 73. Rxa3 {[%clk 0:00:13]}  Kg8 {[%clk 0:00:11]} 74. Ra8+ {[%clk 0:00:13]}  Kh7 {[%clk 0:00:12]} 75. e7 {[%clk 0:00:13]} 1-0


[Site "https://www.chess.com"]

[Event "Titled Tuesday Blitz April 11 Early 2023"]
[White "Vachier-Lagrave, Maxime"]
[Black "Gharibyan, Mamikon"]
[WhiteFideId "623539"]
[BlackFideId "13308300"]
[WhiteElo "2740"]
[BlackElo "2445"]
[Result "1-0"]
[Round "11"]
[TimeControl "180+2"]
[Date "2023.04.11"]
[WhiteClock "0:01:08"]
[BlackClock "0:00:01"]

1. d4 {[%clk 0:03:00]}  Nf6 {[%clk 0:02:58]} 2. Bg5 {[%clk 0:02:57]}  d5 {[%clk 0:02:56]} 3. e3 {[%clk 0:02:56]}  c5 {[%clk 0:02:53]} 4. c3 {[%clk 0:02:52]}  cxd4 {[%clk 0:02:46]} 5. exd4 {[%clk 0:02:51]}  Nc6 {[%clk 0:02:45]} 6. Nd2 {[%clk 0:02:46]}  Bf5 {[%clk 0:02:43]} 7. Ne2 {[%clk 0:02:45]}  e6 {[%clk 0:02:36]} 8. Ng3 {[%clk 0:02:45]}  Bg6 {[%clk 0:02:36]} 9. Qb3 {[%clk 0:02:44]}  Qd7 {[%clk 0:02:26]} 10. Nf3 {[%clk 0:02:41]}  Bd6 {[%clk 0:02:24]} 11. Be2 {[%clk 0:02:38]}  h6 {[%clk 0:02:18]} 12. Be3 {[%clk 0:02:36]}  Ne4 {[%clk 0:02:14]} 13. Nxe4 {[%clk 0:02:32]}  Bxe4 {[%clk 0:02:15]} 14. O-O {[%clk 0:02:31]}  Qc7 {[%clk 0:02:09]} 15. g3 {[%clk 0:02:30]}  O-O {[%clk 0:01:56]} 16. Ne1 {[%clk 0:02:30]}  Na5 {[%clk 0:01:55]} 17. Qd1 {[%clk 0:02:28]}  Nc4 {[%clk 0:01:55]} 18. Bc1 {[%clk 0:02:28]}  b5 {[%clk 0:01:51]} 19. Nd3 {[%clk 0:02:26]}  a5 {[%clk 0:01:50]} 20. b3 {[%clk 0:02:23]}  Nb6 {[%clk 0:01:41]} 21. Bd2 {[%clk 0:02:24]}  Rfc8 {[%clk 0:01:40]} 22. f4 {[%clk 0:02:15]}  Ba3 {[%clk 0:01:33]} 23. Rb1 {[%clk 0:02:06]}  b4 {[%clk 0:01:29]} 24. cxb4 {[%clk 0:02:05]}  Bxb4 {[%clk 0:01:13]} 25. Rc1 {[%clk 0:01:56]}  Qe7 {[%clk 0:01:07]} 26. Be3 {[%clk 0:01:51]}  Nd7 {[%clk 0:01:01]} 27. Nf2 {[%clk 0:01:47]}  Bg6 {[%clk 0:00:58]} 28. Bd3 {[%clk 0:01:43]}  Bxd3 {[%clk 0:00:57]} 29. Qxd3 {[%clk 0:01:44]}  Nf6 {[%clk 0:00:53]} 30. Qb5 {[%clk 0:01:42]}  g6 {[%clk 0:00:45]} 31. Kg2 {[%clk 0:01:42]}  Kg7 {[%clk 0:00:45]} 32. h3 {[%clk 0:01:41]}  Rcb8 {[%clk 0:00:42]} 33. Qe2 {[%clk 0:01:40]}  a4 {[%clk 0:00:42]} 34. g4 {[%clk 0:01:40]}  axb3 {[%clk 0:00:41]} 35. axb3 {[%clk 0:01:41]}  Bd6 {[%clk 0:00:40]} 36. Rc3 {[%clk 0:01:39]}  Ra3 {[%clk 0:00:37]} 37. Rb1 {[%clk 0:01:39]}  Bb4 {[%clk 0:00:26]} 38. Rc2 {[%clk 0:01:39]}  Bd6 {[%clk 0:00:26]} 39. Qd3 {[%clk 0:01:35]}  Qb7 {[%clk 0:00:25]} 40. Rc3 {[%clk 0:01:34]}  Bb4 {[%clk 0:00:25]} 41. Rc2 {[%clk 0:01:32]}  Bd6 {[%clk 0:00:25]} 42. f5 {[%clk 0:01:26]}  exf5 {[%clk 0:00:16]} 43. gxf5 {[%clk 0:01:25]}  Rxb3 {[%clk 0:00:16]} 44. Rxb3 {[%clk 0:01:24]}  Qxb3 {[%clk 0:00:17]} 45. Qd2 {[%clk 0:01:18]}  Bb4 {[%clk 0:00:07]} 46. Bxh6+ {[%clk 0:01:16]}  Kh7 {[%clk 0:00:08]} 47. fxg6+ {[%clk 0:01:16]}  fxg6 {[%clk 0:00:05]} 48. Rc7+ {[%clk 0:01:11]}  Kg8 {[%clk 0:00:04]} 49. Qg5 {[%clk 0:01:11]}  Qb1 {[%clk 0:00:02]} 50. Qxf6 {[%clk 0:01:10]}  Qe4+ {[%clk 0:00:01]} 51. Nxe4 {[%clk 0:01:08]} 1-0


[Site "https://www.chess.com"]

[Event "Titled Tuesday Blitz April 11 Early 2023"]
[White "Svane, Rasmus"]
[Black "Urazayev, Arystanbek"]
[WhiteFideId "4657101"]
[BlackFideId "13709810"]
[WhiteElo "2597"]
[BlackElo "2449"]
[Result "0-1"]
[Round "11"]
[TimeControl "180+2"]
[Date "2023.04.11"]
[WhiteClock "0:00:02"]
[BlackClock "0:00:08"]

1. Nf3 {[%clk 0:03:00]}  d5 {[%clk 0:03:00]} 2. g3 {[%clk 0:03:00]}  b6 {[%clk 0:03:00]} 3. c4 {[%clk 0:02:58]}  dxc4 {[%clk 0:02:59]} 4. Na3 {[%clk 0:02:58]}  e5 {[%clk 0:02:57]} 5. Nxe5 {[%clk 0:02:50]}  Qd5 {[%clk 0:02:38]} 6. Nf3 {[%clk 0:02:50]}  Nd7 {[%clk 0:02:15]} 7. Bg2 {[%clk 0:02:47]}  Bxa3 {[%clk 0:02:14]} 8. bxa3 {[%clk 0:02:46]}  Bb7 {[%clk 0:02:12]} 9. Nh4 {[%clk 0:02:41]}  Qe5 {[%clk 0:01:50]} 10. Bxb7 {[%clk 0:02:39]}  Rb8 {[%clk 0:01:51]} 11. Rb1 {[%clk 0:02:03]}  Rxb7 {[%clk 0:01:50]} 12. Bb2 {[%clk 0:02:03]}  Qd5 {[%clk 0:01:45]} 13. O-O {[%clk 0:01:57]}  Ngf6 {[%clk 0:01:46]} 14. e4 {[%clk 0:01:55]}  Nxe4 {[%clk 0:01:32]} 15. Bxg7 {[%clk 0:01:44]}  Rg8 {[%clk 0:01:32]} 16. Bh6 {[%clk 0:01:23]}  Kd8 {[%clk 0:01:28]} 17. Re1 {[%clk 0:01:21]}  Nd6 {[%clk 0:01:11]} 18. Bf4 {[%clk 0:01:14]}  Rb8 {[%clk 0:01:01]} 19. Qe2 {[%clk 0:01:02]}  Kc8 {[%clk 0:00:59]} 20. Bxd6 {[%clk 0:01:02]}  cxd6 {[%clk 0:00:57]} 21. Rbc1 {[%clk 0:01:02]}  Ne5 {[%clk 0:00:50]} 22. d3 {[%clk 0:00:54]}  Nxd3 {[%clk 0:00:43]} 23. Rcd1 {[%clk 0:00:42]}  Kb7 {[%clk 0:00:42]} 24. Qd2 {[%clk 0:00:34]}  Rbe8 {[%clk 0:00:37]} 25. Rf1 {[%clk 0:00:28]}  Rg4 {[%clk 0:00:35]} 26. Ng2 {[%clk 0:00:27]}  Rge4 {[%clk 0:00:30]} 27. Ne3 {[%clk 0:00:26]}  Qc5 {[%clk 0:00:24]} 28. Nxc4 {[%clk 0:00:26]}  Qxc4 {[%clk 0:00:18]} 29. Qxd3 {[%clk 0:00:25]}  Qxd3 {[%clk 0:00:15]} 30. Rxd3 {[%clk 0:00:26]}  R8e6 {[%clk 0:00:15]} 31. Rc1 {[%clk 0:00:25]}  Re1+ {[%clk 0:00:13]} 32. Rxe1 {[%clk 0:00:26]}  Rxe1+ {[%clk 0:00:13]} 33. Kg2 {[%clk 0:00:27]}  Kc6 {[%clk 0:00:14]} 34. Rf3 {[%clk 0:00:27]}  Re7 {[%clk 0:00:13]} 35. Rf6 {[%clk 0:00:23]}  Kc5 {[%clk 0:00:14]} 36. Kf3 {[%clk 0:00:20]}  d5 {[%clk 0:00:14]} 37. Rf5 {[%clk 0:00:20]}  Kc4 {[%clk 0:00:14]} 38. Rf6 {[%clk 0:00:18]}  d4 {[%clk 0:00:12]} 39. Rc6+ {[%clk 0:00:17]}  Kd3 {[%clk 0:00:10]} 40. g4 {[%clk 0:00:10]}  Kd2 {[%clk 0:00:10]} 41. Kg2 {[%clk 0:00:02]}  d3 {[%clk 0:00:09]} 42. f4 {[%clk 0:00:02]}  Ke2 {[%clk 0:00:08]} 43. f5 {[%clk 0:00:01]}  d2 {[%clk 0:00:09]} 44. f6 {[%clk 0:00:02]}  Re4 {[%clk 0:00:08]} 45. Rc4 {[%clk 0:00:02]}  Rxc4 {[%clk 0:00:08]} 0-1


[Site "https://www.chess.com"]

[Event "Titled Tuesday Blitz April 11 Early 2023"]
[White "Flores, Diego"]
[Black "Kramnik, Vladimir"]
[WhiteFideId "108049"]
[BlackFideId "4101588"]
[WhiteElo "2613"]
[BlackElo "2712"]
[Result "1-0"]
[Round "11"]
[TimeControl "180+2"]
[Date "2023.04.11"]
[WhiteClock "0:00:05"]
[BlackClock "0:00:02"]

1. c4 {[%clk 0:03:00]}  e6 {[%clk 0:02:57]} 2. Nf3 {[%clk 0:02:52]}  Nf6 {[%clk 0:02:57]} 3. g3 {[%clk 0:02:53]}  d5 {[%clk 0:02:54]} 4. Bg2 {[%clk 0:02:53]}  dxc4 {[%clk 0:02:54]} 5. O-O {[%clk 0:02:52]}  a6 {[%clk 0:02:52]} 6. a4 {[%clk 0:02:40]}  Nc6 {[%clk 0:02:51]} 7. a5 {[%clk 0:02:33]}  Bb4 {[%clk 0:02:42]} 8. Qa4 {[%clk 0:02:27]}  O-O {[%clk 0:02:39]} 9. Ne5 {[%clk 0:02:27]}  Nxe5 {[%clk 0:02:34]} 10. Qxb4 {[%clk 0:02:28]}  Qd6 {[%clk 0:02:30]} 11. Qc3 {[%clk 0:01:47]}  Nd5 {[%clk 0:02:29]} 12. Qc2 {[%clk 0:01:48]}  b5 {[%clk 0:02:21]} 13. axb6 {[%clk 0:01:42]}  cxb6 {[%clk 0:02:21]} 14. b3 {[%clk 0:01:37]}  Bb7 {[%clk 0:01:55]} 15. Ba3 {[%clk 0:01:25]}  Qd7 {[%clk 0:01:35]} 16. Bxf8 {[%clk 0:01:21]}  Rxf8 {[%clk 0:01:31]} 17. bxc4 {[%clk 0:01:19]}  Nb4 {[%clk 0:01:19]} 18. Qc3 {[%clk 0:01:06]}  Bxg2 {[%clk 0:01:18]} 19. Kxg2 {[%clk 0:01:06]}  Nec6 {[%clk 0:01:10]} 20. d3 {[%clk 0:00:55]}  e5 {[%clk 0:01:05]} 21. Nd2 {[%clk 0:00:54]}  a5 {[%clk 0:01:05]} 22. Rfb1 {[%clk 0:00:36]}  f5 {[%clk 0:00:59]} 23. c5 {[%clk 0:00:35]}  b5 {[%clk 0:00:54]} 24. Rxa5 {[%clk 0:00:32]}  Nd5 {[%clk 0:00:50]} 25. Qa1 {[%clk 0:00:27]}  b4 {[%clk 0:00:50]} 26. Ra6 {[%clk 0:00:22]}  Qb7 {[%clk 0:00:50]} 27. Qa2 {[%clk 0:00:17]}  Kh8 {[%clk 0:00:36]} 28. Qxd5 {[%clk 0:00:12]}  Qxa6 {[%clk 0:00:36]} 29. Nc4 {[%clk 0:00:12]}  Qa8 {[%clk 0:00:23]} 30. Nd6 {[%clk 0:00:12]}  h6 {[%clk 0:00:22]} 31. f3 {[%clk 0:00:13]}  Kh7 {[%clk 0:00:17]} 32. Rb2 {[%clk 0:00:13]}  Qa1 {[%clk 0:00:16]} 33. Ra2 {[%clk 0:00:13]}  Qb1 {[%clk 0:00:15]} 34. Ra6 {[%clk 0:00:09]}  Nd4 {[%clk 0:00:12]} 35. Qxe5 {[%clk 0:00:08]}  Qb2 {[%clk 0:00:11]} 36. Kf2 {[%clk 0:00:05]}  Rf6 {[%clk 0:00:08]} 37. Ra7 {[%clk 0:00:05]}  Kg6 {[%clk 0:00:04]} 38. Ne8 {[%clk 0:00:05]}  Rf7 {[%clk 0:00:02]} 39. Rxf7 {[%clk 0:00:04]}  Kxf7 {[%clk 0:00:02]} 40. Nd6+ {[%clk 0:00:04]}  Kg6 {[%clk 0:00:02]} 41. c6 {[%clk 0:00:05]} 1-0


[Site "https://www.chess.com"]

[Event "Titled Tuesday Blitz April 11 Early 2023"]
[White "Zemlyanskii, Ivan"]
[Black "Indjic, Aleksandar"]
[WhiteFideId "24249971"]
[BlackFideId "911925"]
[WhiteElo "2419"]
[BlackElo "2614"]
[Result "0-1"]
[Round "11"]
[TimeControl "180+2"]
[Date "2023.04.11"]
[WhiteClock "0:00:02"]
[BlackClock "0:00:47"]

1. d4 {[%clk 0:03:00]}  Nf6 {[%clk 0:02:59]} 2. c4 {[%clk 0:03:01]}  e6 {[%clk 0:03:00]} 3. Bf4 {[%clk 0:03:00]}  c5 {[%clk 0:02:55]} 4. d5 {[%clk 0:03:00]}  exd5 {[%clk 0:02:53]} 5. cxd5 {[%clk 0:03:01]}  d6 {[%clk 0:02:53]} 6. e4 {[%clk 0:03:01]}  Nbd7 {[%clk 0:02:52]} 7. Nc3 {[%clk 0:02:56]}  g6 {[%clk 0:02:52]} 8. h3 {[%clk 0:02:45]}  a6 {[%clk 0:02:51]} 9. a4 {[%clk 0:02:43]}  Qe7 {[%clk 0:02:51]} 10. Bd3 {[%clk 0:02:36]}  Nh5 {[%clk 0:02:50]} 11. Bh2 {[%clk 0:02:32]}  Bh6 {[%clk 0:02:50]} 12. Nf3 {[%clk 0:02:26]}  O-O {[%clk 0:02:47]} 13. O-O {[%clk 0:02:25]}  Bf4 {[%clk 0:02:43]} 14. Bxf4 {[%clk 0:01:49]}  Nxf4 {[%clk 0:02:44]} 15. Qd2 {[%clk 0:01:49]}  g5 {[%clk 0:02:34]} 16. Ne2 {[%clk 0:01:37]}  Ne5 {[%clk 0:02:29]} 17. Nxf4 {[%clk 0:01:20]}  gxf4 {[%clk 0:02:28]} 18. Be2 {[%clk 0:01:17]}  Qf6 {[%clk 0:02:23]} 19. Nxe5 {[%clk 0:01:16]}  Qxe5 {[%clk 0:02:23]} 20. Bf3 {[%clk 0:01:13]}  Bd7 {[%clk 0:02:20]} 21. Qc3 {[%clk 0:01:08]}  f6 {[%clk 0:02:19]} 22. Rfc1 {[%clk 0:01:02]}  b5 {[%clk 0:02:18]} 23. axb5 {[%clk 0:00:48]}  axb5 {[%clk 0:02:19]} 24. Qd2 {[%clk 0:00:49]}  Kh8 {[%clk 0:02:14]} 25. Kh2 {[%clk 0:00:48]}  b4 {[%clk 0:02:12]} 26. Qc2 {[%clk 0:00:44]}  Bb5 {[%clk 0:02:09]} 27. Qd2 {[%clk 0:00:39]}  Rg8 {[%clk 0:02:03]} 28. Kh1 {[%clk 0:00:35]}  Bd7 {[%clk 0:02:02]} 29. Kh2 {[%clk 0:00:33]}  h6 {[%clk 0:01:56]} 30. Re1 {[%clk 0:00:30]}  Kh7 {[%clk 0:01:55]} 31. Rec1 {[%clk 0:00:30]}  Bb5 {[%clk 0:01:47]} 32. Re1 {[%clk 0:00:30]}  h5 {[%clk 0:01:47]} 33. Rec1 {[%clk 0:00:27]}  h4 {[%clk 0:01:44]} 34. Re1 {[%clk 0:00:26]}  Kg7 {[%clk 0:01:33]} 35. Rec1 {[%clk 0:00:27]}  Kf7 {[%clk 0:01:33]} 36. Bg4 {[%clk 0:00:22]}  Ke7 {[%clk 0:01:28]} 37. f3 {[%clk 0:00:22]}  Bd7 {[%clk 0:01:26]} 38. Bxd7 {[%clk 0:00:21]}  Kxd7 {[%clk 0:01:27]} 39. Qe2 {[%clk 0:00:21]}  Ke7 {[%clk 0:01:23]} 40. Rcb1 {[%clk 0:00:09]}  Kf7 {[%clk 0:01:21]} 41. Qb5 {[%clk 0:00:08]}  Kg6 {[%clk 0:01:19]} 42. Rxa8 {[%clk 0:00:07]}  Rxa8 {[%clk 0:01:18]} 43. Qd7 {[%clk 0:00:05]}  Kh6 {[%clk 0:00:59]} 44. Qg4 {[%clk 0:00:01]}  Qg5 {[%clk 0:00:59]} 45. Qe6 {[%clk 0:00:02]}  Ra6 {[%clk 0:00:47]} 0-1


[Site "https://www.chess.com"]

[Event "Titled Tuesday Blitz April 11 Early 2023"]
[White "Terry, Renato"]
[Black "Molina, Roberto Junio Brito"]
[WhiteFideId "3803457"]
[BlackFideId "2109450"]
[WhiteElo "2575"]
[BlackElo "2376"]
[Result "1-0"]
[Round "11"]
[TimeControl "180+2"]
[Date "2023.04.11"]
[WhiteClock "0:01:13"]
[BlackClock "0:00:34"]

1. e4 {[%clk 0:03:00]}  c6 {[%clk 0:02:59]} 2. Nf3 {[%clk 0:03:00]}  d5 {[%clk 0:03:00]} 3. exd5 {[%clk 0:03:00]}  cxd5 {[%clk 0:03:00]} 4. Ne5 {[%clk 0:03:01]}  Nc6 {[%clk 0:02:58]} 5. d4 {[%clk 0:03:02]}  a6 {[%clk 0:02:56]} 6. c3 {[%clk 0:03:02]}  Bf5 {[%clk 0:02:55]} 7. Qf3 {[%clk 0:02:58]}  e6 {[%clk 0:02:53]} 8. Nxf7 {[%clk 0:02:58]}  Kxf7 {[%clk 0:02:52]} 9. g4 {[%clk 0:02:59]}  g6 {[%clk 0:02:52]} 10. gxf5 {[%clk 0:02:59]}  exf5 {[%clk 0:02:51]} 11. Be3 {[%clk 0:02:52]}  Nf6 {[%clk 0:02:51]} 12. Nd2 {[%clk 0:02:52]}  b5 {[%clk 0:02:39]} 13. Bg2 {[%clk 0:02:52]}  Bg7 {[%clk 0:02:33]} 14. O-O {[%clk 0:02:47]}  Re8 {[%clk 0:02:31]} 15. Bg5 {[%clk 0:02:47]}  Ne7 {[%clk 0:02:31]} 16. Rfe1 {[%clk 0:02:44]}  Qd7 {[%clk 0:02:18]} 17. Bxf6 {[%clk 0:02:36]}  Bxf6 {[%clk 0:02:18]} 18. Nb3 {[%clk 0:02:37]}  Qc6 {[%clk 0:02:05]} 19. Nc5 {[%clk 0:02:35]}  Rad8 {[%clk 0:02:04]} 20. Re6 {[%clk 0:02:32]}  Rd6 {[%clk 0:02:04]} 21. Rae1 {[%clk 0:02:32]}  Red8 {[%clk 0:01:56]} 22. Qf4 {[%clk 0:02:15]}  Ng8 {[%clk 0:01:30]} 23. b3 {[%clk 0:01:50]}  a5 {[%clk 0:01:26]} 24. c4 {[%clk 0:01:48]}  bxc4 {[%clk 0:01:23]} 25. bxc4 {[%clk 0:01:48]}  g5 {[%clk 0:01:07]} 26. Qxf5 {[%clk 0:01:47]}  Kg7 {[%clk 0:01:06]} 27. cxd5 {[%clk 0:01:31]}  Qb5 {[%clk 0:00:57]} 28. Be4 {[%clk 0:01:28]}  Bxd4 {[%clk 0:00:43]} 29. Qxh7+ {[%clk 0:01:27]}  Kf8 {[%clk 0:00:43]} 30. Bg6 {[%clk 0:01:13]}  Bxf2+ {[%clk 0:00:34]} 31. Kg2 {[%clk 0:01:13]} 1-0


[Site "https://www.chess.com"]

[Event "Titled Tuesday Blitz April 11 Early 2023"]
[White "Cherniaiev, Tykhon"]
[Black "Movahed, Sina"]
[WhiteFideId "14182360"]
[BlackFideId "42520835"]
[WhiteElo "2450"]
[BlackElo "2225"]
[Result "0-1"]
[Round "11"]
[TimeControl "180+2"]
[Date "2023.04.11"]
[WhiteClock "0:00:09"]
[BlackClock "0:00:19"]

1. Nf3 {[%clk 0:03:00]}  Nf6 {[%clk 0:02:58]} 2. d4 {[%clk 0:03:00]}  g6 {[%clk 0:02:59]} 3. c4 {[%clk 0:03:00]}  Bg7 {[%clk 0:02:59]} 4. Nc3 {[%clk 0:03:01]}  O-O {[%clk 0:02:58]} 5. e4 {[%clk 0:03:01]}  d6 {[%clk 0:02:59]} 6. Be2 {[%clk 0:03:01]}  e5 {[%clk 0:02:57]} 7. dxe5 {[%clk 0:03:02]}  dxe5 {[%clk 0:02:57]} 8. Qxd8 {[%clk 0:03:03]}  Rxd8 {[%clk 0:02:58]} 9. Bg5 {[%clk 0:03:03]}  c6 {[%clk 0:02:58]} 10. Nxe5 {[%clk 0:03:02]}  Re8 {[%clk 0:02:59]} 11. O-O-O {[%clk 0:03:02]}  Na6 {[%clk 0:02:58]} 12. f4 {[%clk 0:02:45]}  h6 {[%clk 0:02:50]} 13. Bh4 {[%clk 0:02:42]}  g5 {[%clk 0:02:50]} 14. fxg5 {[%clk 0:02:33]}  hxg5 {[%clk 0:02:51]} 15. Bg3 {[%clk 0:02:32]}  Nc5 {[%clk 0:02:51]} 16. Rhf1 {[%clk 0:01:14]}  Ncxe4 {[%clk 0:02:33]} 17. Nxe4 {[%clk 0:01:09]}  Nxe4 {[%clk 0:02:31]} 18. Bh5 {[%clk 0:01:10]}  Nxg3 {[%clk 0:02:17]} 19. Bxf7+ {[%clk 0:01:09]}  Kh7 {[%clk 0:02:17]} 20. Bg6+ {[%clk 0:00:57]}  Kh6 {[%clk 0:01:36]} 21. Bxe8 {[%clk 0:00:53]}  Ne2+ {[%clk 0:01:22]} 22. Kb1 {[%clk 0:00:23]}  Bxe5 {[%clk 0:01:08]} 23. Bd7 {[%clk 0:00:22]}  Nf4 {[%clk 0:00:49]} 24. g3 {[%clk 0:00:20]}  Ng6 {[%clk 0:00:49]} 25. Rf7 {[%clk 0:00:18]}  g4 {[%clk 0:00:30]} 26. Bxc8 {[%clk 0:00:17]}  Rxc8 {[%clk 0:00:30]} 27. Rxb7 {[%clk 0:00:14]}  Rf8 {[%clk 0:00:30]} 28. Rd2 {[%clk 0:00:14]}  a5 {[%clk 0:00:24]} 29. Ra7 {[%clk 0:00:14]}  Rb8 {[%clk 0:00:22]} 30. Re2 {[%clk 0:00:08]}  Bc3 {[%clk 0:00:17]} 31. Rc2 {[%clk 0:00:08]}  Bd4 {[%clk 0:00:17]} 32. Rd2 {[%clk 0:00:07]}  Bxa7 {[%clk 0:00:17]} 33. Rd6 {[%clk 0:00:06]}  c5 {[%clk 0:00:16]} 34. Ra6 {[%clk 0:00:03]}  Bb6 {[%clk 0:00:15]} 35. b3 {[%clk 0:00:03]}  Kg5 {[%clk 0:00:15]} 36. Kc2 {[%clk 0:00:03]}  Ne5 {[%clk 0:00:15]} 37. Kc3 {[%clk 0:00:04]}  Nc6 {[%clk 0:00:16]} 38. a3 {[%clk 0:00:03]}  Kf5 {[%clk 0:00:15]} 39. Kd3 {[%clk 0:00:02]}  Ke6 {[%clk 0:00:15]} 40. Ke4 {[%clk 0:00:03]}  Kd6 {[%clk 0:00:15]} 41. Kf5 {[%clk 0:00:03]}  Kc7 {[%clk 0:00:16]} 42. Kxg4 {[%clk 0:00:04]}  Kb7 {[%clk 0:00:16]} 43. Rxb6+ {[%clk 0:00:04]}  Kxb6 {[%clk 0:00:16]} 44. h4 {[%clk 0:00:05]}  Nd4 {[%clk 0:00:17]} 45. h5 {[%clk 0:00:06]}  Nxb3 {[%clk 0:00:18]} 46. Kf5 {[%clk 0:00:06]}  Nd2 {[%clk 0:00:18]} 47. g4 {[%clk 0:00:06]}  Nxc4 {[%clk 0:00:19]} 48. g5 {[%clk 0:00:07]}  Ne3+ {[%clk 0:00:18]} 49. Kf6 {[%clk 0:00:07]}  c4 {[%clk 0:00:18]} 50. g6 {[%clk 0:00:07]}  c3 {[%clk 0:00:18]} 51. h6 {[%clk 0:00:07]}  c2 {[%clk 0:00:19]} 52. h7 {[%clk 0:00:07]}  c1=Q {[%clk 0:00:20]} 53. g7 {[%clk 0:00:08]}  Qc3+ {[%clk 0:00:20]} 54. Kf7 {[%clk 0:00:08]}  Rb7+ {[%clk 0:00:19]} 55. Ke8 {[%clk 0:00:09]}  Qc8# {[%clk 0:00:19]} 0-1


[Site "https://www.chess.com"]